[Event "FIDE Open World Rapid 2024"]
[Site "New York"]
[Date "2024.12.28"]
[Round "8.7"]
[White "Zarnicki, Pablo"]
[Black "Harsha Bharathakoti"]
[Result "1/2-1/2"]
[ECO "B22"]
[WhiteElo "2514"]
[BlackElo "2531"]
[Annotator "ChessBase"]
[PlyCount "270"]
[EventDate "2024.12.14"]
[EventType "swiss"]
[EventCountry "USA"]
[SourceTitle "playchess.com"]
[Source "ChessBase"]
[SourceQuality "1"]
[TimeControl "900+10"]

1. e4 {[%emt 0:01:35]} c5 {[%emt 0:00:23]} 2. c3 {[%emt 0:00:10]} Nf6 {[%emt 0:01:32]} 3. e5 {[%emt 0:00:04]} Nd5 {[%emt 0:00:01]} 4. Nf3 {[%emt 0:00:03]} e6 {[%emt 0:00:10]} 5. g3 {[%emt 0:00:31]} d6 {[%emt 0:02:12]} 6. exd6 {[%emt 0:00:04]} Bxd6 {[%emt 0:00:02]} 7. Bg2 {[%emt 0:00:02]} O-O {[%emt 0:00:07]} 8. O-O {[%emt 0:00:05]} Nc6 {[%emt 0:01:21]} 9. d4 {[%emt 0:00:05]} cxd4 {[%emt 0:01:02]} 10. Nxd4 {[%emt 0:00:03]} Nxd4 {[%emt 0:00:02]} 11. Qxd4 {[%emt 0:00:02]} Qc7 {[%emt 0:00:01]} 12. Nd2 {[%emt 0:01:00]} Bc5 {[%emt 0:00:19]} 13. Qe4 {[%emt 0:01:11]} a5 {[%emt 0:02:08]} 14. Nb3 {[%emt 0:02:11]} Bb6 {[%emt 0:00:15]} 15. c4 {[%emt 0:00:30]} Nf6 {[%emt 0:00:04]} 16. Qe2 {[%emt 0:00:24]} a4 {[%emt 0:01:06]} 17. Bf4 {[%emt 0:00:17]} Qe7 {[%emt 0:00:01]} 18. Nd2 {[%emt 0:01:24]} Re8 {[%emt 0:00:14]} 19. Rac1 {[%emt 0:01:13]} Bc5 {[%emt 0:02:05]} 20. Rfd1 {[%emt 0:00:25]} e5 {[%emt 0:02:23]} 21. Bg5 {[%emt 0:00:02]} Bf5 {[%emt 0:01:04]} 22. Qf3 {[%emt 0:01:42]} Qe6 {[%emt 0:00:12]} 23. Bxf6 {[%emt 0:00:36]} gxf6 {[%emt 0:00:59]} 24. Ne4 {[%emt 0:00:28]} Bd4 {[%emt 0:00:26]} 25. Qh5 {[%emt 0:00:41]} Bg6 {[%emt 0:00:10]} 26. Qh4 {[%emt 0:00:06]} Kg7 {[%emt 0:00:06]} 27. c5 {[%emt 0:00:29]} Red8 {[%emt 0:00:33]} 28. Nd6 {[%emt 0:00:10]} Qxa2 {[%emt 0:00:38]} 29. Nxb7 {[%emt 0:00:23]} Qxb2 {[%emt 0:00:12]} 30. Nxd8 {[%emt 0:00:15]} Rxd8 {[%emt 0:00:01]} 31. c6 {[%emt 0:00:23]} a3 {[%emt 0:00:09]} 32. Qg4 {[%emt 0:01:01]} Bxf2+ {[%emt 0:00:19]} 33. Kh1 {[%emt 0:00:03]} h5 {[%emt 0:00:11]} 34. c7 {[%emt 0:00:38]} Rf8 {[%emt 0:00:11]} 35. Qd7 {[%emt 0:00:45]} a2 {[%emt 0:00:04]} 36. c8=Q {[%emt 0:00:20]} Rxc8 {[%emt 0:00:00]} 37. Qxc8 {[%emt 0:00:04]} Bb1 {[%emt 0:00:01]} 38. Rc7 {[%emt 0:00:52]} Bg6 {[%emt 0:00:34]} 39. Qa6 {[%emt 0:00:56]} Bd4 {[%emt 0:00:09]} 40. Rf1 {[%emt 0:00:14]} e4 {[%emt 0:00:11]} 41. Rcc1 {[%emt 0:00:02]} e3 {[%emt 0:00:02]} 42. Ra1 {[%emt 0:00:12]} e2 {[%emt 0:00:15]} 43. Rfe1 {[%emt 0:00:21]} Bb1 {[%emt 0:00:01]} 44. Rxa2 {[%emt 0:00:10]} Bxa2 {[%emt 0:00:11]} 45. Qxe2 {[%emt 0:00:02]} Qxe2 {[%emt 0:00:13]} 46. Rxe2 {[%emt 0:00:01]} Be6 {[%emt 0:00:01]} 47. Bf3 {[%emt 0:00:06]} Kg6 {[%emt 0:00:06]} 48. h4 {[%emt 0:00:05]} Be5 {[%emt 0:00:00]} 49. Kg2 {[%emt 0:00:02]} Kh6 {[%emt 0:00:36]} 50. Rd2 {[%emt 0:00:05]} Bf5 {[%emt 0:00:09]} 51. Rd8 {[%emt 0:00:03]} Bg6 {[%emt 0:00:11]} 52. Ra8 {[%emt 0:00:05]} Kg7 {[%emt 0:00:01]} 53. Ra4 {[%emt 0:00:04]} Kh6 {[%emt 0:00:01]} 54. Be4 {[%emt 0:00:07]} Kg7 {[%emt 0:00:01]} 55. Kf3 {[%emt 0:00:06]} Kh6 {[%emt 0:00:00]} 56. Ra7 {[%emt 0:00:14]} Bb8 {[%emt 0:00:10]} 57. Rb7 {[%emt 0:00:03]} Bxe4+ {[%emt 0:00:10]} 58. Kxe4 {[%emt 0:00:02]} Bxg3 {[%emt 0:00:01]} 59. Kf5 {[%emt 0:00:47]} Bxh4 {[%emt 0:00:02]} 60. Rxf7 {[%emt 0:00:02]} Bg5 {[%emt 0:00:01]} 61. Rf8 {[%emt 0:00:03]} Kg7 {[%emt 0:00:01]} 62. Rb8 {[%emt 0:00:03]} h4 {[%emt 0:00:01]} 63. Rb3 {[%emt 0:00:07]} Kh6 {[%emt 0:00:01]} 64. Kg4 {[%emt 0:00:05]} Kg6 {[%emt 0:00:01]} 65. Rf3 {[%emt 0:00:02]} Kf7 {[%emt 0:00:02]} 66. Kf5 {[%emt 0:00:03]} Ke7 {[%emt 0:00:01]} 67. Rd3 {[%emt 0:00:04]} Bh6 {[%emt 0:00:05]} 68. Rd1 {[%emt 0:00:05]} Bg5 {[%emt 0:00:01]} 69. Rd4 {[%emt 0:00:05]} Kf7 {[%emt 0:00:19]} 70. Rd7+ {[%emt 0:00:04]} Ke8 {[%emt 0:00:02]} 71. Ke6 {[%emt 0:00:02]} Kf8 {[%emt 0:00:01]} 72. Rb7 {[%emt 0:00:13]} Kg8 {[%emt 0:00:02]} 73. Kf5 {[%emt 0:00:03]} Kf8 {[%emt 0:00:00]} 74. Ra7 {[%emt 0:00:12]} Ke8 {[%emt 0:00:02]} 75. Ke6 {[%emt 0:00:08]} Kf8 {[%emt 0:00:01]} 76. Re7 {[%emt 0:00:45]} Kg8 {[%emt 0:00:07]} 77. Kf5 {[%emt 0:00:08]} Kf8 {[%emt 0:00:01]} 78. Re1 {[%emt 0:00:02]} Kf7 {[%emt 0:00:01]} 79. Re2 {[%emt 0:00:01]} Kf8 {[%emt 0:00:01]} 80. Kg6 {[%emt 0:00:04]} h3 {[%emt 0:00:03]} 81. Rh2 {[%emt 0:00:02]} Ke7 {[%emt 0:00:00]} 82. Rxh3 {[%emt 0:00:02]} Kd6 {[%emt 0:00:01]} 83. Kf5 {[%emt 0:00:03]} Kd5 {[%emt 0:00:01]} 84. Rd3+ {[%emt 0:00:01]} Kc4 {[%emt 0:00:00]} 85. Rd7 {[%emt 0:00:03]} Kc5 {[%emt 0:00:01]} 86. Ke6 {[%emt 0:00:02]} Kc4 {[%emt 0:00:01]} 87. Rd1 {[%emt 0:00:04]} Kc5 {[%emt 0:00:01]} 88. Kf5 {[%emt 0:00:05]} Kc4 {[%emt 0:00:01]} 89. Ke4 {[%emt 0:00:01]} Kc5 {[%emt 0:00:01]} 90. Rd7 {[%emt 0:00:02]} Bh4 {[%emt 0:00:07]} 91. Rc7+ {[%emt 0:00:07]} Kd6 {[%emt 0:00:00]} 92. Ra7 {[%emt 0:00:02]} Kc5 {[%emt 0:00:06]} 93. Ra5+ {[%emt 0:00:03]} Kd6 {[%emt 0:00:13]} 94. Rf5 {[%emt 0:00:11]} Bg5 {[%emt 0:00:01]} 95. Rd5+ {[%emt 0:00:04]} Ke6 {[%emt 0:00:05]} 96. Rd1 {[%emt 0:00:02]} f5+ {[%emt 0:00:03]} 97. Kf3 {[%emt 0:00:01]} Ke5 {[%emt 0:00:00]} 98. Ra1 {[%emt 0:00:03]} Ke6 {[%emt 0:00:01]} 99. Ra5 {[%emt 0:00:03]} Kf6 {[%emt 0:00:01]} 100. Rb5 {[%emt 0:00:03]} Ke6 {[%emt 0:00:01]} 101. Ke2 {[%emt 0:00:03]} Kf6 {[%emt 0:00:07]} 102. Kd3 {[%emt 0:00:02]} Ke6 {[%emt 0:00:00]} 103. Kd4 {[%emt 0:00:05]} Bf6+ {[%emt 0:00:01]} 104. Ke3 {[%emt 0:00:02]} Bg5+ {[%emt 0:00:01]} 105. Kf3 {[%emt 0:00:01]} Kf6 {[%emt 0:00:01]} 106. Rb6+ {[%emt 0:00:02]} Ke5 {[%emt 0:00:01]} 107. Rg6 {[%emt 0:00:02]} Bd2 {[%emt 0:00:05]} 108. Rg8 {[%emt 0:00:01]} Bc1 {[%emt 0:00:03]} 109. Re8+ {[%emt 0:00:03]} Kf6 {[%emt 0:00:06]} 110. Ra8 {[%emt 0:00:10]} Ke6 {[%emt 0:00:06]} 111. Ra5 {[%emt 0:00:08]} Bd2 {[%emt 0:00:02]} 112. Ra2 {[%emt 0:00:09]} Bg5 {[%emt 0:00:02]} 113. Re2+ {[%emt 0:00:03]} Kf6 {[%emt 0:00:03]} 114. Re8 {[%emt 0:00:03]} Bc1 {[%emt 0:00:04]} 115. Rc8 {[%emt 0:00:03]} Bg5 {[%emt 0:00:02]} 116. Rc5 {[%emt 0:00:01]} Ke6 {[%emt 0:00:01]} 117. Rb5 {[%emt 0:00:01]} Kf6 {[%emt 0:00:01]} 118. Ke2 {[%emt 0:00:03]} Ke6 {[%emt 0:00:03]} 119. Kd3 {[%emt 0:00:01]} Bh4 {[%emt 0:00:11]} 120. Ra5 {[%emt 0:00:06]} Bg5 {[%emt 0:00:01]} 121. Ra2 {[%emt 0:00:11]} Ke5 {[%emt 0:00:05]} 122. Re2+ {[%emt 0:00:04]} Kd5 {[%emt 0:02:29]} 123. Rg2 {[%emt 0:00:05]} Bf4 {[%emt 0:00:08]} 124. Ra2 {[%emt 0:00:06]} Bg5 {[%emt 0:00:01]} 125. Ra5+ {[%emt 0:00:04]} Ke6 {[%emt 0:00:01]} 126. Rb5 {[%emt 0:00:00]} Bh4 {[%emt 0:00:02]} 127. Kc4 {[%emt 0:00:10]} Bg5 {[%emt 0:00:17]} 128. Kd4 {[%emt 0:00:13]} Bf6+ {[%emt 0:00:00]} 129. Kc5 {[%emt 0:00:01]} Ke5 {[%emt 0:00:06]} 130. Kc6+ {[%emt 0:00:04]} Ke4 {[%emt 0:00:01]} 131. Kd7 {[%emt 0:00:02]} f4 {[%emt 0:00:01]} 132. Ke6 {[%emt 0:00:07]} Bd4 {[%emt 0:00:01]} 133. Rh5 {[%emt 0:00:08]} f3 {[%emt 0:00:01]} 134. Rf5 {[%emt 0:00:09]} f2 {[%emt 0:00:01]} 135. Rxf2 {[%emt 0:00:02]} Bxf2 {[%emt 0:00:11]} 1/2-1/2

[Event "FIDE Open World Rapid 2024"]
[Site "New York"]
[Date "2024.12.27"]
[Round "8.8"]
[White "Deac, Bogdan-Daniel"]
[Black "Aronian, Levon"]
[Result "1/2-1/2"]
[ECO "A30"]
[WhiteElo "2696"]
[BlackElo "2747"]
[Annotator "ChessBase"]
[PlyCount "47"]
[EventDate "2024.12.14"]
[EventType "swiss"]
[EventCountry "USA"]
[SourceTitle "playchess.com"]
[Source "ChessBase"]
[SourceQuality "1"]
[TimeControl "900+10"]

1. Nf3 {[%emt 0:00:03]} Nf6 {[%emt 0:00:02]} 2. c4 {[%emt 0:00:01]} b6 {[%emt 0:00:02]} 3. g3 {[%emt 0:00:09]} c5 {[%emt 0:00:02]} 4. Bg2 {[%emt 0:00:05]} Bb7 {[%emt 0:00:02]} 5. O-O {[%emt 0:00:07]} g6 {[%emt 0:00:02]} 6. b3 {[%emt 0:00:14]} Bg7 {[%emt 0:00:02]} 7. Bb2 {[%emt 0:00:01]} O-O {[%emt 0:00:03]} 8. Nc3 {[%emt 0:00:02]} d5 {[%emt 0:00:27]} 9. Nxd5 {[%emt 0:00:18]} Nxd5 {[%emt 0:00:02]} 10. Bxg7 {[%emt 0:00:03]} Kxg7 {[%emt 0:00:02]} 11. cxd5 {[%emt 0:00:02]} Qxd5 {[%emt 0:00:02]} 12. d4 {[%emt 0:00:02]} cxd4 {[%emt 0:01:35]} 13. Qxd4+ {[%emt 0:00:38]} Qxd4 {[%emt 0:00:02]} 14. Nxd4 {[%emt 0:00:02]} Bxg2 {[%emt 0:00:02]} 15. Kxg2 {[%emt 0:00:02]} Na6 {[%emt 0:00:22]} 16. Rac1 {[%emt 0:00:11]} Rfc8 {[%emt 0:00:23]} 17. Nb5 {[%emt 0:01:01]} Rc5 {[%emt 0:00:41]} 18. Rxc5 {[%emt 0:02:36]} Nxc5 {[%emt 0:00:03]} 19. Rc1 {[%emt 0:00:24]} a5 {[%emt 0:00:57]} 20. Rd1 {[%emt 0:00:39]} Rc8 {[%emt 0:00:19]} 21. Na7 {[%emt 0:00:29]} Rc7 {[%emt 0:00:07]} 22. Nb5 {[%emt 0:00:02]} Rc8 {[%emt 0:00:24]} 23. Na7 {[%emt 0:00:02]} Rc7 {[%emt 0:00:02]} 24. Nb5 {[%emt 0:00:02]} 1/2-1/2

[Event "FIDE Open World Rapid 2024"]
[Site "New York"]
[Date "2024.12.28"]
[Round "8.8"]
[White "Onischuk, Alexander"]
[Black "Smirnov, Mark"]
[Result "1-0"]
[ECO "A18"]
[WhiteElo "2640"]
[BlackElo "2336"]
[Annotator "ChessBase"]
[PlyCount "77"]
[EventDate "2024.12.14"]
[EventType "swiss"]
[EventCountry "USA"]
[SourceTitle "playchess.com"]
[Source "ChessBase"]
[SourceQuality "1"]
[TimeControl "900+10"]

1. c4 {[%emt 0:00:03]} Nf6 {[%emt 0:00:02]} 2. Nc3 {[%emt 0:00:01]} e6 {[%emt 0:00:03]} 3. e4 {[%emt 0:00:05]} d5 {[%emt 0:00:01]} 4. e5 {[%emt 0:00:13]} d4 {[%emt 0:00:08]} 5. exf6 {[%emt 0:00:02]} dxc3 {[%emt 0:00:02]} 6. bxc3 {[%emt 0:00:03]} Qxf6 {[%emt 0:00:20]} 7. Nf3 {[%emt 0:00:01]} e5 {[%emt 0:00:12]} 8. Bd3 {[%emt 0:00:48]} Nc6 {[%emt 0:00:59]} 9. O-O {[%emt 0:00:25]} Bc5 {[%emt 0:00:16]} 10. Rb1 {[%emt 0:01:30]} O-O {[%emt 0:00:21]} 11. Qc2 {[%emt 0:00:30]} h6 {[%emt 0:00:40]} 12. Be4 {[%emt 0:00:25]} Rb8 {[%emt 0:01:45]} 13. Rb5 {[%emt 0:02:05]} b6 {[%emt 0:01:09]} 14. Bxc6 {[%emt 0:00:29]} Qxc6 {[%emt 0:00:03]} 15. Nxe5 {[%emt 0:00:08]} Qe6 {[%emt 0:00:52]} 16. d4 {[%emt 0:00:20]} a6 {[%emt 0:00:18]} 17. Rb1 {[%emt 0:02:02]} Bd6 {[%emt 0:00:16]} 18. Bf4 {[%emt 0:03:15]} Bxe5 {[%emt 0:04:26]} 19. Bxe5 {[%emt 0:00:02]} Qxc4 {[%emt 0:00:01]} 20. Rb4 {[%emt 0:00:10]} Qc6 {[%emt 0:00:05]} 21. c4 {[%emt 0:00:07]} Bg4 {[%emt 0:03:23]} 22. d5 {[%emt 0:00:44]} Qd7 {[%emt 0:01:07]} 23. h3 {[%emt 0:01:28]} Bf5 {[%emt 0:00:15]} 24. Qb2 {[%emt 0:00:03]} f6 {[%emt 0:00:04]} 25. Bg3 {[%emt 0:00:03]} Rbc8 {[%emt 0:02:11]} 26. Rc1 {[%emt 0:00:15]} Rfe8 {[%emt 0:00:19]} 27. d6 {[%emt 0:00:13]} cxd6 {[%emt 0:00:05]} 28. Rxb6 {[%emt 0:00:03]} Rc6 {[%emt 0:00:15]} 29. Qd4 {[%emt 0:00:12]} Rec8 {[%emt 0:00:11]} 30. Rxc6 {[%emt 0:02:02]} Rxc6 {[%emt 0:00:07]} 31. Kh2 {[%emt 0:00:21]} Be6 {[%emt 0:00:12]} 32. a3 {[%emt 0:00:06]} Qc8 {[%emt 0:00:11]} 33. Rd1 {[%emt 0:00:22]} Bxc4 {[%emt 0:00:09]} 34. Bxd6 {[%emt 0:00:07]} Bf7 {[%emt 0:00:11]} 35. Bg3 {[%emt 0:00:12]} Rc4 {[%emt 0:00:10]} 36. Qa7 {[%emt 0:00:11]} Be6 {[%emt 0:00:09]} 37. Qe7 {[%emt 0:00:08]} Kh7 {[%emt 0:00:10]} 38. Rd8 {[%emt 0:00:22]} Qc6 {[%emt 0:00:02]} 39. Rd6 {[%emt 0:00:05]} 1-0

[Event "FIDE Open World Rapid 2024"]
[Site "New York"]
[Date "2024.12.27"]
[Round "8.9"]
[White "Sevian, Samuel"]
[Black "Firouzja, Alireza"]
[Result "1-0"]
[ECO "B90"]
[WhiteElo "2696"]
[BlackElo "2763"]
[Annotator "TA"]
[PlyCount "83"]
[EventDate "2024.12.14"]
[EventType "swiss"]
[EventCountry "USA"]
[SourceTitle "playchess.com"]
[Source "ChessBase"]
[SourceQuality "1"]
[TimeControl "900+10"]

{[%evp 25,83,7,36,41,37,19,37,27,26,24,39,35,37,20,19,25,39,0,0,0,0,-7,0,0,0,0,12,0,44,43,91,76,89,96,103,102,334,356,337,353,347,333,355,354,358,345,402,406,402,417,483,465,478,433,423,406,576,585,546,522]} 1. e4 {[%emt 0:00:02]} c5 {[%emt 0:00:01]} 2. Nf3 {[%emt 0:00:02]} d6 {[%emt 0:00:01]} 3. d4 {[%emt 0:00:15]} cxd4 {[%emt 0:00:01]} 4. Nxd4 {[%emt 0:00:02]} Nf6 {[%emt 0:00:02]} 5. Nc3 {[%emt 0:00:01]} a6 {[%emt 0:00:01]} 6. Be3 {[%emt 0:00:56]} Ng4 {[%emt 0:00:19]} 7. Bc1 {[%emt 0:00:01]} Nf6 {[%emt 0:00:01]} 8. f3 {[%emt 0:00:49]} e5 {[%emt 0:00:04]} 9. Nb3 {[%emt 0:00:02]} Be6 {[%emt 0:00:04]} 10. Be3 {[%emt 0:00:02]} Be7 {[%emt 0:00:06]} 11. Qd2 {[%emt 0:00:02]} h5 {[%emt 0:00:02]} 12. O-O-O {[%emt 0:00:20]} Nbd7 {[%emt 0:00:01]} 13. Kb1 {[%emt 0:00:19]} Rc8 {[%emt 0:00:06]} 14. g3 {[%emt 0:00:02]} Qc7 {[%emt 0:00:49]} 15. Rg1 {[%emt 0:00:10]} b5 {[%emt 0:00:16]} 16. Nd5 {[%emt 0:00:05] Against Nb6. White is slightly better.} Nxd5 {[%emt 0:00:44]} 17. exd5 {[%emt 0:00:03]} Bf5 {[%emt 0:00:01]} 18. Bd3 {[%emt 0:00:02]} Bxd3 {[%emt 0:00:03]} 19. Qxd3 {[%emt 0:00:01]} Qc4 {[%emt 0:00:49]} 20. Qd2 {[%emt 0:00:05]} Bd8 {[%emt 0:00:37][%cal Oa6a5]} 21. h3 {[%emt 0:01:31]} f5 {[%emt 0:02:02][%cal Oa6a5]} 22. Rg2 {[%emt 0:05:18]} O-O {[%emt 0:01:30]} 23. Bg5 {[%emt 0:01:23]} Nf6 {[%emt 0:03:29]} 24. a3 {[%emt 0:01:32][%cal Og3g4]} e4 {[%emt 0:02:12]} 25. Bxf6 {[%emt 0:01:06]} Rxf6 {[%emt 0:01:11]} 26. Qe3 {[%emt 0:00:35] Against Bb6} Rb8 {[%emt 0:00:07]} 27. fxe4 {[%emt 0:01:09]} (27. Nd2 Qxd5 28. fxe4 fxe4) 27... Bb6 {[%emt 0:00:13] [#]} (27... fxe4 $14 28. Re2 Rf3 29. Qxe4 Qxe4 30. Rxe4 Rxg3) 28. Qe1 $1 $16 {[%emt 0:00:02] Black must now prevent exf5.} (28. Nd4 Re8 29. b3 Bxd4 (29... Rxe4 $2 30. Qxe4 $18) 30. Qxd4 Qxd4 31. Rxd4 fxe4 $19 (31... Rxe4 32. Rd3 $15)) 28... Re8 {[%emt 0:03:01]} ({Much worse is} 28... fxe4 29. Nd2 Qc7 30. Qxe4 (30. Nxe4 Rf5 $16)) 29. Nd2 {[%emt 0:00:12][%cal Bb3d2,Bd2f3,Bf3g5,Bg5e6][%mdl 32]} Qc8 {[%emt 0:00:44]} 30. Re2 {[%emt 0:00:21]} Re5 $2 {[%emt 0:00:25] [#] This move loses the game for Black.} (30... Rff8 $16 {might work better.}) 31. Nf3 $1 $18 {[%emt 0:01:28]} Rxe4 {[%emt 0:00:03]} 32. Ng5 $1 {[%emt 0:00:01]} Rxe2 {[%emt 0:00:42]} 33. Qxe2 {[%emt 0:00:03]} Qd7 {[%emt 0:00:29]} 34. Qxh5 {[%emt 0:00:40] Black is weak on the light squares} Rh6 {[%emt 0:00:00]} 35. Qf3 {[%emt 0:00:13]} Bd8 {[%emt 0:00:27]} 36. Ne6 {[%emt 0:00:02]} Rf6 {[%emt 0:00:03]} 37. Re1 {[%emt 0:00:09]} Qe8 {[%emt 0:00:20]} 38. Re2 {[%emt 0:00:12]} Qd7 {[%emt 0:00:08]} 39. Qc3 {[%emt 0:00:41]} Rf7 {[%emt 0:00:05]} 40. Qc6 {[%emt 0:00:22] Nxd8 would now be deadly.} Qxc6 {[%emt 0:00:10]} (40... Bf6 {was necessary.} 41. Qxa6 Qa7 42. Qxb5 (42. Qxd6 b4 $18) 42... Kh7) 41. dxc6 {[%emt 0:00:01]} Bb6 {[%emt 0:00:00]} 42. Nf4 {[%emt 0:00:02] Weighted Error Value: White=0.04 (flawless) /Black=0.23 (precise) .  Loses game:     	---       	Black=1      Mistake:       	---       	Black=2      Inaccurate:     	White=1     	Black=1      OK:         	White=14    	Black=12     Best:        	White=1     	---        Strong:       	White=3     	---} 1-0

[Event "FIDE Open World Rapid 2024"]
[Site "New York"]
[Date "2024.12.28"]
[Round "8.9"]
[White "Oparin, Grigoriy"]
[Black "Madaminov, Mukhiddin"]
[Result "1-0"]
[ECO "C42"]
[WhiteElo "2653"]
[BlackElo "2501"]
[Annotator "ChessBase"]
[PlyCount "107"]
[EventDate "2024.12.14"]
[EventType "swiss"]
[EventCountry "USA"]
[SourceTitle "playchess.com"]
[Source "ChessBase"]
[SourceQuality "1"]
[TimeControl "900+10"]

1. e4 {[%emt 0:00:01]} e5 {[%emt 0:00:21]} 2. Nf3 {[%emt 0:00:02]} Nf6 {[%emt 0:00:19]} 3. Nxe5 {[%emt 0:00:10]} Nxe4 {[%emt 0:00:02]} 4. Qe2 {[%emt 0:00:17]} Qe7 {[%emt 0:00:02]} 5. Qxe4 {[%emt 0:00:05]} d6 {[%emt 0:00:01]} 6. d4 {[%emt 0:00:01]} dxe5 {[%emt 0:00:02]} 7. dxe5 {[%emt 0:00:24]} Nc6 {[%emt 0:00:02]} 8. Nc3 {[%emt 0:00:19]} Qxe5 {[%emt 0:00:03]} 9. Qxe5+ {[%emt 0:00:03]} Nxe5 {[%emt 0:00:02]} 10. Nb5 {[%emt 0:00:05]} Bb4+ {[%emt 0:00:03]} 11. Bd2 {[%emt 0:00:01]} Bxd2+ {[%emt 0:00:01]} 12. Kxd2 {[%emt 0:00:02]} Kd8 {[%emt 0:00:02]} 13. Re1 {[%emt 0:00:48]} Nd7 {[%emt 0:00:02]} 14. Bc4 {[%emt 0:00:23]} Rf8 {[%emt 0:00:02]} 15. b3 {[%emt 0:00:18]} a6 {[%emt 0:01:36]} 16. Nd4 {[%emt 0:00:06]} c5 {[%emt 0:00:05]} 17. Nf5 {[%emt 0:02:13]} Nb6 {[%emt 0:00:15]} 18. Bd3 {[%emt 0:00:01]} c4 {[%emt 0:04:26]} 19. Be4 {[%emt 0:00:02]} cxb3 {[%emt 0:00:11]} 20. axb3 {[%emt 0:00:06]} Bxf5 {[%emt 0:00:10]} 21. Bxf5 {[%emt 0:00:02]} g6 {[%emt 0:00:37]} 22. Bg4 {[%emt 0:00:11]} f5 {[%emt 0:00:42]} 23. Bf3 {[%emt 0:00:01]} Rf7 {[%emt 0:00:02]} 24. c4 {[%emt 0:00:31]} Kc7 {[%emt 0:00:14]} 25. Kc3 {[%emt 0:00:13]} Rd8 {[%emt 0:03:13]} 26. Re3 {[%emt 0:00:58]} Nd7 {[%emt 0:01:19]} 27. Rhe1 {[%emt 0:00:46]} Nf6 {[%emt 0:00:08]} 28. Re7+ {[%emt 0:02:59]} Rd7 {[%emt 0:00:02]} 29. Rxf7 {[%emt 0:00:06]} Rxf7 {[%emt 0:00:02]} 30. b4 {[%emt 0:00:01]} Ng4 {[%emt 0:02:02]} 31. Bd5 {[%emt 0:00:35]} Rd7 {[%emt 0:00:01]} 32. f3 {[%emt 0:00:02]} Nf6 {[%emt 0:00:02]} 33. Kd4 {[%emt 0:00:05]} Nxd5 {[%emt 0:00:27]} 34. cxd5 {[%emt 0:00:01]} Kd8 {[%emt 0:00:02]} 35. Re6 {[%emt 0:02:48]} Rc7 {[%emt 0:00:02]} 36. Rd6+ {[%emt 0:00:23]} Kc8 {[%emt 0:00:11]} 37. Rf6 {[%emt 0:00:01]} Rc2 {[%emt 0:00:09]} 38. Ke5 {[%emt 0:00:08]} Kc7 {[%emt 0:01:14]} 39. Rf7+ {[%emt 0:00:35]} Kb6 {[%emt 0:00:01]} 40. Rxh7 {[%emt 0:01:02]} Rxg2 {[%emt 0:00:13]} 41. Ke6 {[%emt 0:00:27]} Rf2 {[%emt 0:01:20]} 42. d6 {[%emt 0:01:06]} Rxf3 {[%emt 0:00:01]} 43. Ke7 {[%emt 0:00:56]} Rd3 {[%emt 0:00:43]} 44. Rh8 {[%emt 0:01:00]} Re3+ {[%emt 0:01:09]} 45. Kd8 {[%emt 0:00:01]} Rd3 {[%emt 0:00:46]} 46. d7 {[%emt 0:00:03]} Kc6 {[%emt 0:00:02]} 47. Rh7 {[%emt 0:00:02]} Kb6 {[%emt 0:00:18]} 48. Ke8 {[%emt 0:00:26]} a5 {[%emt 0:00:09]} 49. bxa5+ {[%emt 0:00:04]} Kxa5 {[%emt 0:00:03]} 50. d8=Q+ {[%emt 0:00:03]} Rxd8+ {[%emt 0:00:02]} 51. Kxd8 {[%emt 0:00:01]} b5 {[%emt 0:00:02]} 52. Rg7 {[%emt 0:00:12]} b4 {[%emt 0:00:04]} 53. Rxg6 {[%emt 0:00:01]} b3 {[%emt 0:00:01]} 54. Rg5 {[%emt 0:00:03]} 1-0

[Event "FIDE Open World Rapid 2024"]
[Site "New York"]
[Date "2024.12.27"]
[Round "8.10"]
[White "Shankland, Sam"]
[Black "Nakamura, Hikaru"]
[Result "0-1"]
[ECO "D02"]
[WhiteElo "2672"]
[BlackElo "2802"]
[Annotator "TA"]
[PlyCount "82"]
[EventDate "2024.12.14"]
[EventType "swiss"]
[EventCountry "USA"]
[SourceTitle "playchess.com"]
[Source "ChessBase"]
[SourceQuality "1"]
[TimeControl "900+10"]

{[%evp 9,82,43,31,22,30,12,39,42,37,43,36,49,55,52,40,26,18,20,44,0,0,-7,-15,-139,-130,-151,-144,-146,-151,-143,-144,-196,-206,-359,-348,-356,-337,-341,-349,-387,-389,-372,-333,-327,-338,-340,-334,-372,-374,-410,-342,-349,-374,-368,-366,-371,-360,-372,-370,-413,-426,-413,-358,-412,-420,-514,-387,-477,-477,-732,-715,-739,-724,-1020,-899]} 1. Nf3 {[%emt 0:00:01]} Nf6 {[%emt 0:00:10]} 2. g3 {[%emt 0:00:01]} d5 {[%emt 0:00:12]} 3. Bg2 {[%emt 0:00:05]} Nbd7 {[%emt 0:00:41]} 4. d4 {[%emt 0:00:18]} Nb6 {[%emt 0:00:01]} 5. O-O {[%emt 0:00:04]} Bf5 {[%emt 0:00:01]} 6. Ne5 {[%emt 0:00:07]} c6 {[%emt 0:00:05]} 7. f3 {[%emt 0:00:17][%cal Oe2e4]} h6 {[%emt 0:00:17]} 8. e4 {[%emt 0:00:19]} Bh7 {[%emt 0:00:01]} 9. Be3 {[%emt 0:00:17][%cal Oc2c4]} e6 {[%emt 0:00:35]} 10. c4 {[%emt 0:00:13]} Nfd7 {[%emt 0:00:19] Hoping for ...Nxe5.} 11. cxd5 {[%emt 0:01:11]} cxd5 {[%emt 0:00:06]} 12. Nc3 {[%emt 0:01:40] and exd5 should not be overlooked} Bb4 {[%emt 0:00:15]} 13. Rc1 {[%emt 0:01:56]} O-O {[%emt 0:00:32]} 14. Qb3 {[%emt 0:00:54]} Bxc3 {[%emt 0:00:56]} 15. Rxc3 {[%emt 0:00:35]} Nf6 {[%emt 0:00:08][%cal Rd5e4]} 16. Qc2 {[%emt 0:00:42] [#]} (16. exd5 $11 Nbxd5 (16... Nfxd5 17. Rc5 $15) 17. Rc4) 16... dxe4 $1 $17 {[%emt 0:00:50]} 17. fxe4 {[%emt 0:00:13]} Nbd5 {[%emt 0:00:17]} 18. Qd3 {[%emt 0:01:59]} Nxc3 {[%emt 0:00:19]} 19. bxc3 {[%emt 0:00:01]} Rc8 {[%emt 0:00:17]} 20. Bd2 {[%emt 0:00:25]} (20. c4 $17) 20... Nd7 $19 {[%emt 0:00:12]} 21. Nc4 $2 {[%emt 0:00:20]} (21. Nxd7 {was worth a try.} Qxd7 22. g4) 21... Nc5 $19 {[%emt 0:00:14]} 22. Qe2 {[%emt 0:00:51]} Nxe4 {[%emt 0:00:04]} 23. Bxe4 {[%emt 0:00:26]} Bxe4 {[%emt 0:00:01]} 24. Ne5 {[%emt 0:00:01]} f6 {[%emt 0:01:25]} 25. Ng4 {[%emt 0:00:29]} Bf5 {[%emt 0:00:13]} 26. Ne3 {[%emt 0:00:24]} Bg6 {[%emt 0:00:07]} 27. Qg4 {[%emt 0:00:31]} Qe8 {[%emt 0:00:32]} 28. Re1 {[%emt 0:00:36]} Kh7 {[%emt 0:00:12]} 29. c4 {[%emt 0:00:15]} Qf7 {[%emt 0:00:05]} 30. a4 {[%emt 0:00:24]} b6 {[%emt 0:00:09]} 31. a5 {[%emt 0:00:12]} Bd3 {[%emt 0:00:21]} 32. axb6 {[%emt 0:00:32]} axb6 {[%emt 0:00:01]} 33. d5 {[%emt 0:00:02]} e5 {[%emt 0:00:31]} 34. Bb4 {[%emt 0:00:53]} Rfd8 {[%emt 0:00:13]} 35. Qd1 {[%emt 0:00:17]} Bg6 {[%emt 0:00:22]} ({Stronger than} 35... Bxc4 36. Nxc4 Rxd5 (36... Qxd5 37. Qxd5 Rxd5 38. Nxb6 $16) 37. Qb1+ Kh8 38. Nd6 Rxd6 39. Bxd6 $11) 36. Qb3 {[%emt 0:00:18]} f5 {[%emt 0:00:08]} 37. Ba3 {[%emt 0:00:43]} Re8 {[%emt 0:00:26]} 38. Rf1 {[%emt 0:00:45]} f4 {[%emt 0:00:19]} 39. d6 {[%emt 0:00:39] [#]} (39. Ng2 $142) 39... b5 $1 $19 {[%emt 0:00:36][%cal Rb5c4]} 40. Bc1 {[%emt 0:01:16]} (40. Nd1 bxc4) 40... bxc4 {[%emt 0:00:16]} 41. Qb6 {[%emt 0:00:12]} Qd7 {[%emt 0:00:15]} 0-1